[Event "Titled Tuesday Blitz January 31 Early 2023"]
[White "Oparin, Grigoriy"]
[Black "Chylewski, Patryk"]
[WhiteFideId "24125890"]
[BlackFideId "1186191"]
[WhiteElo "2667"]
[BlackElo "2281"]
[Result "1-0"]
[Round "04"]
[TimeControl "180+2"]
[Date "2023.01.31"]
[WhiteClock "0:01:18"]
[BlackClock "0:00:47"]

1. g3 {[%clk 0:03:00]}  d5 {[%clk 0:02:59]} 2. Bg2 {[%clk 0:03:01]}  c6 {[%clk 0:03:00]} 3. c4 {[%clk 0:03:02]}  Nf6 {[%clk 0:03:00]} 4. Nf3 {[%clk 0:03:02]}  Bg4 {[%clk 0:02:59]} 5. Ne5 {[%clk 0:03:01]}  Bh5 {[%clk 0:02:59]} 6. cxd5 {[%clk 0:02:55]}  cxd5 {[%clk 0:02:59]} 7. Qa4+ {[%clk 0:02:53]}  Nbd7 {[%clk 0:02:58]} 8. g4 {[%clk 0:02:44]}  Bg6 {[%clk 0:02:57]} 9. Nc3 {[%clk 0:02:37]}  a6 {[%clk 0:02:20]} 10. Nxd7 {[%clk 0:02:33]}  Nxd7 {[%clk 0:02:13]} 11. Bxd5 {[%clk 0:02:24]}  b5 {[%clk 0:02:08]} 12. Qf4 {[%clk 0:02:23]}  Rb8 {[%clk 0:02:01]} 13. h4 {[%clk 0:02:20]}  e6 {[%clk 0:02:02]} 14. Bg2 {[%clk 0:02:13]}  h6 {[%clk 0:01:55]} 15. d3 {[%clk 0:02:09]}  Be7 {[%clk 0:01:54]} 16. Qg3 {[%clk 0:02:08]}  Nc5 {[%clk 0:01:44]} 17. Bf4 {[%clk 0:02:06]}  Rc8 {[%clk 0:01:35]} 18. h5 {[%clk 0:01:58]}  Bh7 {[%clk 0:01:35]} 19. O-O {[%clk 0:01:58]}  O-O {[%clk 0:01:33]} 20. Rad1 {[%clk 0:01:56]}  b4 {[%clk 0:01:31]} 21. Ne4 {[%clk 0:01:55]}  Nxe4 {[%clk 0:01:27]} 22. dxe4 {[%clk 0:01:56]}  Qa5 {[%clk 0:01:27]} 23. Qb3 {[%clk 0:01:54]}  Rfd8 {[%clk 0:01:24]} 24. Rd3 {[%clk 0:01:51]}  Bf6 {[%clk 0:01:16]} 25. Rfd1 {[%clk 0:01:48]}  Rxd3 {[%clk 0:01:16]} 26. Rxd3 {[%clk 0:01:46]}  Qb5 {[%clk 0:01:13]} 27. a3 {[%clk 0:01:39]}  bxa3 {[%clk 0:01:12]} 28. bxa3 {[%clk 0:01:36]}  Qa5 {[%clk 0:01:07]} 29. Bf3 {[%clk 0:01:31]}  Kh8 {[%clk 0:01:05]} 30. Kg2 {[%clk 0:01:31]}  Bg8 {[%clk 0:01:05]} 31. Qb4 {[%clk 0:01:27]}  Qxb4 {[%clk 0:01:02]} 32. axb4 {[%clk 0:01:28]}  Rc4 {[%clk 0:01:02]} 33. Bd6 {[%clk 0:01:26]}  Bh7 {[%clk 0:01:01]} 34. Ra3 {[%clk 0:01:26]}  Bxe4 {[%clk 0:01:00]} 35. Rxa6 {[%clk 0:01:24]}  Bc3 {[%clk 0:00:48]} 36. b5 {[%clk 0:01:20]}  Bxf3+ {[%clk 0:00:48]} 37. Kxf3 {[%clk 0:01:21]}  Bd4 {[%clk 0:00:48]} 38. Rc6 {[%clk 0:01:18]}  Ra4 {[%clk 0:00:47]} 39. e3 {[%clk 0:01:18]} 1-0


[Site "https://www.chess.com"]

[Event "Titled Tuesday Blitz January 31 Early 2023"]
[White "Yeletsky, Ivan"]
[Black "Yelisieiev, Yevhenii"]
[WhiteFideId "24180327"]
[BlackFideId "14139642"]
[WhiteElo "2494"]
[BlackElo "2418"]
[Result "1-0"]
[Round "04"]
[TimeControl "180+2"]
[Date "2023.01.31"]
[WhiteClock "0:01:37"]
[BlackClock "0:00:14"]

1. d4 {[%clk 0:02:50]}  d6 {[%clk 0:02:59]} 2. e4 {[%clk 0:02:49]}  Nf6 {[%clk 0:02:59]} 3. Nc3 {[%clk 0:02:50]}  e5 {[%clk 0:03:00]} 4. Nge2 {[%clk 0:02:48]}  c6 {[%clk 0:02:59]} 5. a4 {[%clk 0:02:47]}  a5 {[%clk 0:02:59]} 6. h3 {[%clk 0:02:47]}  Be7 {[%clk 0:02:59]} 7. g4 {[%clk 0:02:47]}  Na6 {[%clk 0:02:58]} 8. Bg2 {[%clk 0:02:47]}  Nb4 {[%clk 0:02:58]} 9. O-O {[%clk 0:02:48]}  Be6 {[%clk 0:02:57]} 10. f4 {[%clk 0:02:46]}  Bc4 {[%clk 0:02:54]} 11. b3 {[%clk 0:02:42]}  Ba6 {[%clk 0:02:54]} 12. Rf2 {[%clk 0:02:42]}  O-O {[%clk 0:02:36]} 13. Be3 {[%clk 0:02:35]}  Nd7 {[%clk 0:02:30]} 14. Ng3 {[%clk 0:02:19]}  Bh4 {[%clk 0:02:28]} 15. Kh2 {[%clk 0:02:18]}  exd4 {[%clk 0:02:22]} 16. Bxd4 {[%clk 0:02:14]}  Nc5 {[%clk 0:02:15]} 17. Qf3 {[%clk 0:02:06]}  Ne6 {[%clk 0:02:05]} 18. Be3 {[%clk 0:02:07]}  d5 {[%clk 0:02:03]} 19. exd5 {[%clk 0:02:02]}  cxd5 {[%clk 0:02:02]} 20. Nxd5 {[%clk 0:01:57]}  Rc8 {[%clk 0:01:46]} 21. c4 {[%clk 0:01:44]}  Nd3 {[%clk 0:01:32]} 22. Rd2 {[%clk 0:01:42]}  Nec5 {[%clk 0:01:27]} 23. Nf5 {[%clk 0:01:40]}  Bf6 {[%clk 0:01:20]} 24. Rad1 {[%clk 0:01:40]}  g6 {[%clk 0:00:52]} 25. Nxf6+ {[%clk 0:01:31]}  Kh8 {[%clk 0:00:34]} 26. Bd4 {[%clk 0:01:32]}  gxf5 {[%clk 0:00:30]} 27. Nd5+ {[%clk 0:01:32]}  f6 {[%clk 0:00:28]} 28. Rxd3 {[%clk 0:01:33]}  Nxd3 {[%clk 0:00:26]} 29. Rxd3 {[%clk 0:01:34]}  fxg4 {[%clk 0:00:20]} 30. hxg4 {[%clk 0:01:35]}  Qd6 {[%clk 0:00:18]} 31. g5 {[%clk 0:01:33]}  Qe6 {[%clk 0:00:13]} 32. Nxf6 {[%clk 0:01:33]}  Rxf6 {[%clk 0:00:13]} 33. Bxf6+ {[%clk 0:01:33]}  Kg8 {[%clk 0:00:14]} 34. Qd5 {[%clk 0:01:33]}  Qxd5 {[%clk 0:00:12]} 35. Bxd5+ {[%clk 0:01:34]}  Kf8 {[%clk 0:00:12]} 36. Re3 {[%clk 0:01:35]}  Re8 {[%clk 0:00:12]} 37. Rxe8+ {[%clk 0:01:35]}  Kxe8 {[%clk 0:00:13]} 38. Kg3 {[%clk 0:01:35]}  b6 {[%clk 0:00:13]} 39. f5 {[%clk 0:01:36]}  Bc8 {[%clk 0:00:13]} 40. Kf4 {[%clk 0:01:37]}  Bd7 {[%clk 0:00:14]} 41. Ke5 {[%clk 0:01:37]}  Bxa4 {[%clk 0:00:14]} 42. bxa4 {[%clk 0:01:37]} 1-0


[Site "https://www.chess.com"]

[Event "Titled Tuesday Blitz January 31 Early 2023"]
[White "Ivic, Velimir"]
[Black "Reprintsev, Alexander"]
[WhiteFideId "950122"]
[BlackFideId "14100541"]
[WhiteElo "2595"]
[BlackElo "2253"]
[Result "1-0"]
[Round "04"]
[TimeControl "180+2"]
[Date "2023.01.31"]
[WhiteClock "0:00:30"]
[BlackClock "0:01:18"]

1. d4 {[%clk 0:02:56]}  d5 {[%clk 0:02:59]} 2. c4 {[%clk 0:02:56]}  e5 {[%clk 0:02:59]} 3. dxe5 {[%clk 0:02:55]}  d4 {[%clk 0:02:59]} 4. Nf3 {[%clk 0:02:54]}  Nc6 {[%clk 0:03:00]} 5. Nbd2 {[%clk 0:02:53]}  a5 {[%clk 0:02:56]} 6. g3 {[%clk 0:02:51]}  a4 {[%clk 0:02:48]} 7. Bg2 {[%clk 0:02:50]}  Bg4 {[%clk 0:02:43]} 8. O-O {[%clk 0:02:46]}  Qd7 {[%clk 0:02:43]} 9. Ne4 {[%clk 0:02:12]}  Bh3 {[%clk 0:02:25]} 10. Bxh3 {[%clk 0:01:42]}  Qxh3 {[%clk 0:02:24]} 11. Nxd4 {[%clk 0:01:43]}  Rd8 {[%clk 0:02:14]} 12. Be3 {[%clk 0:01:29]}  a3 {[%clk 0:01:40]} 13. Qa4 {[%clk 0:01:23]}  Ne7 {[%clk 0:01:39]} 14. Nb5 {[%clk 0:01:20]}  Rc8 {[%clk 0:01:33]} 15. Rad1 {[%clk 0:01:03]}  Nf5 {[%clk 0:01:31]} 16. Nxc7+ {[%clk 0:00:44]}  Rxc7 {[%clk 0:01:23]} 17. Qa8+ {[%clk 0:00:44]}  Ke7 {[%clk 0:01:22]} 18. Bc5+ {[%clk 0:00:45]}  Ke6 {[%clk 0:01:21]} 19. Ng5+ {[%clk 0:00:46]}  Kxe5 {[%clk 0:01:20]} 20. Nxh3 {[%clk 0:00:39]}  Bxc5 {[%clk 0:01:20]} 21. Qxh8 {[%clk 0:00:38]}  axb2 {[%clk 0:01:21]} 22. Rd5+ {[%clk 0:00:38]}  Kf6 {[%clk 0:01:19]} 23. Rxc5 {[%clk 0:00:39]}  Ncd4 {[%clk 0:01:18]} 24. Rxc7 {[%clk 0:00:38]}  Nxe2+ {[%clk 0:01:19]} 25. Kg2 {[%clk 0:00:34]}  Nc1 {[%clk 0:01:20]} 26. Qf8 {[%clk 0:00:33]}  b1=Q {[%clk 0:01:18]} 27. Qxf7+ {[%clk 0:00:31]}  Ke5 {[%clk 0:01:18]} 28. Qd5+ {[%clk 0:00:30]} 1-0


[Site "https://www.chess.com"]

[Event "Titled Tuesday Blitz January 31 Early 2023"]
[White "Kazakouski, Valery"]
[Black "Odegov, Artem"]
[WhiteFideId "13507443"]
[BlackFideId "34183644"]
[WhiteElo "2539"]
[BlackElo "2261"]
[Result "1-0"]
[Round "04"]
[TimeControl "180+2"]
[Date "2023.01.31"]
[WhiteClock "0:00:51"]
[BlackClock "0:00:24"]

1. Nf3 {[%clk 0:03:00]}  d5 {[%clk 0:02:57]} 2. c4 {[%clk 0:03:00]}  e6 {[%clk 0:02:57]} 3. b3 {[%clk 0:03:01]}  c5 {[%clk 0:02:57]} 4. e3 {[%clk 0:03:00]}  Nf6 {[%clk 0:02:57]} 5. Bb2 {[%clk 0:02:59]}  Nc6 {[%clk 0:02:58]} 6. cxd5 {[%clk 0:02:56]}  exd5 {[%clk 0:02:58]} 7. Bb5 {[%clk 0:02:52]}  Be7 {[%clk 0:02:57]} 8. O-O {[%clk 0:02:52]}  O-O {[%clk 0:02:55]} 9. d4 {[%clk 0:02:53]}  Bg4 {[%clk 0:02:52]} 10. h3 {[%clk 0:02:50]}  Bh5 {[%clk 0:02:46]} 11. Nbd2 {[%clk 0:02:49]}  cxd4 {[%clk 0:02:44]} 12. Bxc6 {[%clk 0:02:49]}  bxc6 {[%clk 0:02:44]} 13. Bxd4 {[%clk 0:02:49]}  c5 {[%clk 0:02:44]} 14. Bb2 {[%clk 0:02:47]}  Re8 {[%clk 0:02:42]} 15. Rc1 {[%clk 0:02:46]}  Rc8 {[%clk 0:02:36]} 16. Qe2 {[%clk 0:02:39]}  Ne4 {[%clk 0:02:25]} 17. Rfd1 {[%clk 0:02:38]}  Qb6 {[%clk 0:02:07]} 18. Qd3 {[%clk 0:02:30]}  Nxd2 {[%clk 0:02:02]} 19. Rxd2 {[%clk 0:02:23]}  Rcd8 {[%clk 0:01:58]} 20. Ne5 {[%clk 0:01:59]}  Bf6 {[%clk 0:01:54]} 21. Qf5 {[%clk 0:01:59]}  Bg6 {[%clk 0:01:49]} 22. Nxg6 {[%clk 0:01:58]}  hxg6 {[%clk 0:01:50]} 23. Qf3 {[%clk 0:01:58]}  Bxb2 {[%clk 0:01:43]} 24. Rxb2 {[%clk 0:01:59]}  d4 {[%clk 0:01:43]} 25. exd4 {[%clk 0:01:57]}  cxd4 {[%clk 0:01:44]} 26. Rd2 {[%clk 0:01:56]}  Re7 {[%clk 0:01:43]} 27. Rcd1 {[%clk 0:01:55]}  Red7 {[%clk 0:01:42]} 28. Rd3 {[%clk 0:01:52]}  Qa6 {[%clk 0:01:42]} 29. R1d2 {[%clk 0:01:51]}  Qa5 {[%clk 0:01:42]} 30. Qf4 {[%clk 0:01:50]}  Qc5 {[%clk 0:01:40]} 31. Qe4 {[%clk 0:01:44]}  Re7 {[%clk 0:01:36]} 32. Qf4 {[%clk 0:01:42]}  Red7 {[%clk 0:01:32]} 33. h4 {[%clk 0:01:42]}  Rd5 {[%clk 0:01:28]} 34. g3 {[%clk 0:01:42]}  Rf5 {[%clk 0:01:26]} 35. Rxd4 {[%clk 0:01:25]}  Rxf4 {[%clk 0:01:21]} 36. Rxd8+ {[%clk 0:01:25]}  Kh7 {[%clk 0:01:22]} 37. gxf4 {[%clk 0:01:25]}  Qh5 {[%clk 0:01:22]} 38. R8d4 {[%clk 0:01:20]}  Qxh4 {[%clk 0:01:18]} 39. b4 {[%clk 0:01:20]}  Qh3 {[%clk 0:01:11]} 40. a4 {[%clk 0:01:16]}  Qg4+ {[%clk 0:01:05]} 41. Kf1 {[%clk 0:01:17]}  Qh3+ {[%clk 0:01:05]} 42. Ke1 {[%clk 0:01:16]}  Qh1+ {[%clk 0:01:05]} 43. Ke2 {[%clk 0:01:16]}  Qh5+ {[%clk 0:01:04]} 44. Kd3 {[%clk 0:01:09]}  Qf3+ {[%clk 0:00:55]} 45. Kc4 {[%clk 0:01:09]}  Qc6+ {[%clk 0:00:55]} 46. Kb3 {[%clk 0:01:10]}  Qf3+ {[%clk 0:00:56]} 47. Kb2 {[%clk 0:01:08]}  f6 {[%clk 0:00:53]} 48. b5 {[%clk 0:01:07]}  g5 {[%clk 0:00:47]} 49. fxg5 {[%clk 0:01:05]}  fxg5 {[%clk 0:00:48]} 50. R4d3 {[%clk 0:01:02]}  Qf6+ {[%clk 0:00:48]} 51. Kb3 {[%clk 0:01:03]}  Qf7+ {[%clk 0:00:47]} 52. Kb4 {[%clk 0:01:03]}  Qf4+ {[%clk 0:00:45]} 53. Rd4 {[%clk 0:01:00]}  Qc7 {[%clk 0:00:43]} 54. a5 {[%clk 0:01:00]}  Qe7+ {[%clk 0:00:43]} 55. Ka4 {[%clk 0:01:00]}  Qe1 {[%clk 0:00:43]} 56. b6 {[%clk 0:00:57]}  a6 {[%clk 0:00:36]} 57. Rd5 {[%clk 0:00:56]}  Qa1+ {[%clk 0:00:34]} 58. Kb4 {[%clk 0:00:56]}  Qb1+ {[%clk 0:00:35]} 59. Kc5 {[%clk 0:00:56]}  Qc1+ {[%clk 0:00:34]} 60. Kd6 {[%clk 0:00:56]}  Qa3+ {[%clk 0:00:34]} 61. Kc7 {[%clk 0:00:53]}  Qc3+ {[%clk 0:00:33]} 62. Kb7 {[%clk 0:00:54]}  g4 {[%clk 0:00:33]} 63. Kxa6 {[%clk 0:00:52]}  g3 {[%clk 0:00:33]} 64. fxg3 {[%clk 0:00:52]}  Qxg3 {[%clk 0:00:34]} 65. Ka7 {[%clk 0:00:52]}  g5 {[%clk 0:00:24]} 66. b7 {[%clk 0:00:51]}  Qe3+ {[%clk 0:00:24]} 67. R2d4 {[%clk 0:00:51]} 1-0


[Site "https://www.chess.com"]

[Event "Titled Tuesday Blitz January 31 Early 2023"]
[White "Rakhmatullaev, Almas"]
[Black "Aggelis, Nikolaos"]
[WhiteFideId "14205793"]
[BlackFideId "4213220"]
[WhiteElo "2275"]
[BlackElo "2270"]
[Result "0-1"]
[Round "04"]
[TimeControl "180+2"]
[Date "2023.01.31"]
[WhiteClock "0:00:05"]
[BlackClock "0:00:07"]

1. e4 {[%clk 0:03:00]}  c6 {[%clk 0:02:31]} 2. Nf3 {[%clk 0:03:00]}  d5 {[%clk 0:02:31]} 3. d3 {[%clk 0:03:00]}  dxe4 {[%clk 0:02:30]} 4. Ng5 {[%clk 0:03:01]}  Nf6 {[%clk 0:02:24]} 5. Nc3 {[%clk 0:03:00]}  g6 {[%clk 0:02:20]} 6. Ngxe4 {[%clk 0:02:54]}  Nxe4 {[%clk 0:02:20]} 7. Nxe4 {[%clk 0:02:55]}  Bg7 {[%clk 0:02:21]} 8. h4 {[%clk 0:02:54]}  h6 {[%clk 0:02:11]} 9. Be2 {[%clk 0:02:50]}  Bf5 {[%clk 0:02:08]} 10. Ng3 {[%clk 0:02:47]}  Be6 {[%clk 0:02:05]} 11. c3 {[%clk 0:02:45]}  Bd5 {[%clk 0:02:00]} 12. Be3 {[%clk 0:02:31]}  h5 {[%clk 0:01:49]} 13. Qd2 {[%clk 0:02:24]}  Bxg2 {[%clk 0:01:45]} 14. Rg1 {[%clk 0:02:24]}  Bh3 {[%clk 0:01:45]} 15. Nxh5 {[%clk 0:02:17]}  Be5 {[%clk 0:01:43]} 16. Rg5 {[%clk 0:02:05]}  Bf6 {[%clk 0:01:16]} 17. Nxf6+ {[%clk 0:02:03]}  exf6 {[%clk 0:01:17]} 18. Rg3 {[%clk 0:02:01]}  Rxh4 {[%clk 0:01:16]} 19. O-O-O {[%clk 0:01:57]}  Be6 {[%clk 0:01:15]} 20. Re1 {[%clk 0:01:54]}  Nd7 {[%clk 0:01:14]} 21. a3 {[%clk 0:01:16]}  Qa5 {[%clk 0:01:09]} 22. f4 {[%clk 0:00:51]}  O-O-O {[%clk 0:01:07]} 23. Bf2 {[%clk 0:00:45]}  Rh2 {[%clk 0:01:05]} 24. Qe3 {[%clk 0:00:38]}  Rdh8 {[%clk 0:01:00]} 25. Bf3 {[%clk 0:00:29]}  Rxf2 {[%clk 0:00:56]} 26. Qxf2 {[%clk 0:00:27]}  Nc5 {[%clk 0:00:56]} 27. Bd1 {[%clk 0:00:25]}  Qb5 {[%clk 0:00:41]} 28. c4 {[%clk 0:00:22]}  Qb6 {[%clk 0:00:28]} 29. Qe3 {[%clk 0:00:16]}  Rh2 {[%clk 0:00:25]} 30. Re2 {[%clk 0:00:08]}  Rh1 {[%clk 0:00:22]} 31. b4 {[%clk 0:00:05]}  Qa6 {[%clk 0:00:18]} 32. Qxc5 {[%clk 0:00:04]}  Qxa3+ {[%clk 0:00:18]} 33. Kd2 {[%clk 0:00:04]}  Qb2+ {[%clk 0:00:16]} 34. Bc2 {[%clk 0:00:05]}  Rc1 {[%clk 0:00:13]} 35. Ke3 {[%clk 0:00:03]}  Rxc2 {[%clk 0:00:14]} 36. Rxc2 {[%clk 0:00:04]}  Qxc2 {[%clk 0:00:15]} 37. Qd4 {[%clk 0:00:03]}  Qc1+ {[%clk 0:00:15]} 38. Kf2 {[%clk 0:00:03]}  Qd2+ {[%clk 0:00:14]} 39. Kg1 {[%clk 0:00:04]}  Qxb4 {[%clk 0:00:14]} 40. Qxf6 {[%clk 0:00:03]}  Qe1+ {[%clk 0:00:13]} 41. Kh2 {[%clk 0:00:04]}  Qf2+ {[%clk 0:00:13]} 42. Rg2 {[%clk 0:00:05]}  Qf3 {[%clk 0:00:13]} 43. d4 {[%clk 0:00:05]}  Qh5+ {[%clk 0:00:12]} 44. Kg3 {[%clk 0:00:03]}  Qd1 {[%clk 0:00:11]} 45. d5 {[%clk 0:00:03]}  Qd3+ {[%clk 0:00:11]} 46. Kh2 {[%clk 0:00:03]}  cxd5 {[%clk 0:00:11]} 47. cxd5 {[%clk 0:00:03]}  Bxd5 {[%clk 0:00:11]} 48. Qh8+ {[%clk 0:00:03]}  Kd7 {[%clk 0:00:11]} 49. Rf2 {[%clk 0:00:02]}  Qe4 {[%clk 0:00:11]} 50. Qh3+ {[%clk 0:00:02]}  Ke7 {[%clk 0:00:09]} 51. Qf1 {[%clk 0:00:03]}  Kf6 {[%clk 0:00:08]} 52. f5 {[%clk 0:00:03]}  g5 {[%clk 0:00:08]} 53. Qh3 {[%clk 0:00:03]}  g4 {[%clk 0:00:08]} 54. Qh4+ {[%clk 0:00:03]}  Ke5 {[%clk 0:00:08]} 55. Qe7+ {[%clk 0:00:03]}  Kd4 {[%clk 0:00:08]} 56. Qxe4+ {[%clk 0:00:03]}  Bxe4 {[%clk 0:00:09]} 57. Kg3 {[%clk 0:00:04]}  b5 {[%clk 0:00:07]} 58. Kxg4 {[%clk 0:00:04]}  b4 {[%clk 0:00:07]} 59. Kg5 {[%clk 0:00:05]}  b3 {[%clk 0:00:07]} 60. Kf6 {[%clk 0:00:05]}  Bd5 {[%clk 0:00:07]} 61. Rd2+ {[%clk 0:00:06]}  Kc5 {[%clk 0:00:07]} 62. Ke5 {[%clk 0:00:06]}  Bc4 {[%clk 0:00:07]} 63. f6 {[%clk 0:00:03]}  a5 {[%clk 0:00:07]} 64. Rh2 {[%clk 0:00:03]}  a4 {[%clk 0:00:08]} 65. Rh8 {[%clk 0:00:02]}  b2 {[%clk 0:00:07]} 66. Rc8+ {[%clk 0:00:02]}  Kb4 {[%clk 0:00:06]} 67. Kd4 {[%clk 0:00:03]}  Bb5 {[%clk 0:00:05]} 68. Rc7 {[%clk 0:00:02]}  b1=Q {[%clk 0:00:04]} 69. Rxf7 {[%clk 0:00:03]}  Qd3+ {[%clk 0:00:03]} 70. Ke5 {[%clk 0:00:03]}  Qe3+ {[%clk 0:00:04]} 71. Kd6 {[%clk 0:00:03]}  Qd4+ {[%clk 0:00:04]} 72. Ke7 {[%clk 0:00:04]}  Qe5+ {[%clk 0:00:04]} 73. Kf8 {[%clk 0:00:05]}  Bc4 {[%clk 0:00:05]} 74. Rb7+ {[%clk 0:00:04]}  Kc5 {[%clk 0:00:05]} 75. f7 {[%clk 0:00:04]}  Bxf7 {[%clk 0:00:05]} 76. Rxf7 {[%clk 0:00:04]}  Qd6+ {[%clk 0:00:05]} 77. Kg7 {[%clk 0:00:04]}  Qg3+ {[%clk 0:00:06]} 78. Kf8 {[%clk 0:00:04]}  Qb3 {[%clk 0:00:05]} 79. Rf5+ {[%clk 0:00:04]}  Kc4 {[%clk 0:00:05]} 80. Rf4+ {[%clk 0:00:05]}  Kc3 {[%clk 0:00:05]} 81. Rf3+ {[%clk 0:00:05]}  Kb2 {[%clk 0:00:06]} 82. Rf2+ {[%clk 0:00:06]}  Ka3 {[%clk 0:00:06]} 83. Rf6 {[%clk 0:00:06]}  Ka2 {[%clk 0:00:06]} 84. Rf2+ {[%clk 0:00:05]}  Qb2 {[%clk 0:00:07]} 85. Rf5 {[%clk 0:00:06]}  a3 {[%clk 0:00:07]} 86. Ke7 {[%clk 0:00:05]}  Qc2 {[%clk 0:00:07]} 87. Re5 {[%clk 0:00:04]}  Kb2 {[%clk 0:00:07]} 88. Kf6 {[%clk 0:00:05]}  a2 {[%clk 0:00:07]} 89. Rb5+ {[%clk 0:00:05]}  Qb3 {[%clk 0:00:07]} 0-1


[Site "https://www.chess.com"]

[Event "Titled Tuesday Blitz January 31 Early 2023"]
[White "Sielecki, Christof"]
[Black "Mikaelyan, Arman"]
[WhiteFideId "4620437"]
[BlackFideId "13304852"]
[WhiteElo "2419"]
[BlackElo "2523"]
[Result "0-1"]
[Round "04"]
[TimeControl "180+2"]
[Date "2023.01.31"]
[WhiteClock "0:00:07"]
[BlackClock "0:00:13"]

1. e4 {[%clk 0:03:00]}  e5 {[%clk 0:02:52]} 2. Nf3 {[%clk 0:03:00]}  Nc6 {[%clk 0:02:48]} 3. Bb5 {[%clk 0:02:59]}  a6 {[%clk 0:02:41]} 4. Ba4 {[%clk 0:02:59]}  Nf6 {[%clk 0:02:38]} 5. d3 {[%clk 0:02:59]}  d6 {[%clk 0:02:38]} 6. c3 {[%clk 0:02:59]}  Bd7 {[%clk 0:02:37]} 7. O-O {[%clk 0:02:58]}  g6 {[%clk 0:02:36]} 8. Re1 {[%clk 0:02:58]}  Bg7 {[%clk 0:02:35]} 9. Nbd2 {[%clk 0:02:59]}  O-O {[%clk 0:02:35]} 10. Nf1 {[%clk 0:02:59]}  Re8 {[%clk 0:02:20]} 11. Ng3 {[%clk 0:02:58]}  b5 {[%clk 0:02:05]} 12. Bc2 {[%clk 0:02:57]}  a5 {[%clk 0:02:05]} 13. h3 {[%clk 0:02:51]}  a4 {[%clk 0:01:58]} 14. Rb1 {[%clk 0:02:35]}  Qb8 {[%clk 0:01:47]} 15. Be3 {[%clk 0:02:24]}  Qb7 {[%clk 0:01:38]} 16. a3 {[%clk 0:01:48]}  Na5 {[%clk 0:01:36]} 17. Qd2 {[%clk 0:01:43]}  c5 {[%clk 0:01:29]} 18. Bh6 {[%clk 0:01:41]}  Be6 {[%clk 0:01:21]} 19. Bxg7 {[%clk 0:01:30]}  Kxg7 {[%clk 0:01:21]} 20. Rbd1 {[%clk 0:01:28]}  Nb3 {[%clk 0:01:11]} 21. Bxb3 {[%clk 0:01:27]}  Bxb3 {[%clk 0:01:11]} 22. Rc1 {[%clk 0:01:27]}  h6 {[%clk 0:00:53]} 23. c4 {[%clk 0:01:16]}  Rab8 {[%clk 0:00:44]} 24. Nh4 {[%clk 0:01:15]}  Kh7 {[%clk 0:00:43]} 25. f4 {[%clk 0:01:12]}  Qe7 {[%clk 0:00:40]} 26. Rf1 {[%clk 0:00:56]}  Ng8 {[%clk 0:00:40]} 27. Nf3 {[%clk 0:00:47]}  bxc4 {[%clk 0:00:38]} 28. dxc4 {[%clk 0:00:45]}  exf4 {[%clk 0:00:39]} 29. Qxf4 {[%clk 0:00:42]}  Qf6 {[%clk 0:00:39]} 30. Qg4 {[%clk 0:00:33]}  Qg7 {[%clk 0:00:30]} 31. Rf2 {[%clk 0:00:27]}  Nf6 {[%clk 0:00:29]} 32. Qf4 {[%clk 0:00:23]}  Re6 {[%clk 0:00:29]} 33. e5 {[%clk 0:00:20]}  dxe5 {[%clk 0:00:28]} 34. Nxe5 {[%clk 0:00:21]}  Rbe8 {[%clk 0:00:27]} 35. Ng4 {[%clk 0:00:17]}  Nxg4 {[%clk 0:00:26]} 36. hxg4 {[%clk 0:00:17]}  Re1+ {[%clk 0:00:22]} 37. Rxe1 {[%clk 0:00:17]}  Rxe1+ {[%clk 0:00:23]} 38. Kh2 {[%clk 0:00:17]}  Re7 {[%clk 0:00:23]} 39. Nf1 {[%clk 0:00:15]}  Qd4 {[%clk 0:00:18]} 40. Qf6 {[%clk 0:00:07]}  Qxf6 {[%clk 0:00:17]} 41. Rxf6 {[%clk 0:00:07]}  Bxc4 {[%clk 0:00:18]} 42. Ng3 {[%clk 0:00:08]}  Bd3 {[%clk 0:00:16]} 43. Rc6 {[%clk 0:00:07]}  c4 {[%clk 0:00:17]} 44. Kh3 {[%clk 0:00:07]}  Kg7 {[%clk 0:00:16]} 45. Kh4 {[%clk 0:00:08]}  Re3 {[%clk 0:00:16]} 46. g5 {[%clk 0:00:08]}  hxg5+ {[%clk 0:00:16]} 47. Kg4 {[%clk 0:00:09]}  Bc2 {[%clk 0:00:14]} 48. Nf1 {[%clk 0:00:08]}  Bd1+ {[%clk 0:00:14]} 49. Kxg5 {[%clk 0:00:07]}  Re4 {[%clk 0:00:14]} 50. Ng3 {[%clk 0:00:07]}  Rg4# {[%clk 0:00:13]} 0-1


[Site "https://www.chess.com"]

[Event "Titled Tuesday Blitz January 31 Early 2023"]
[White "Aaditya Dhingra"]
[Black "Kukhmazov, Arsen"]
[WhiteFideId "25678191"]
[BlackFideId "24108260"]
[WhiteElo "2027"]
[BlackElo "2512"]
[Result "0-1"]
[Round "04"]
[TimeControl "180+2"]
[Date "2023.01.31"]
[WhiteClock "0:00:05"]
[BlackClock "0:00:05"]

1. b3 {[%clk 0:02:58]}  d5 {[%clk 0:02:45]} 2. Bb2 {[%clk 0:02:58]}  c6 {[%clk 0:02:46]} 3. e3 {[%clk 0:02:56]}  Bf5 {[%clk 0:02:46]} 4. f4 {[%clk 0:02:56]}  e6 {[%clk 0:02:46]} 5. Nf3 {[%clk 0:02:55]}  Nf6 {[%clk 0:02:47]} 6. Bd3 {[%clk 0:02:56]}  a5 {[%clk 0:02:43]} 7. a3 {[%clk 0:02:54]}  g6 {[%clk 0:02:33]} 8. h3 {[%clk 0:02:46]}  Bg7 {[%clk 0:02:31]} 9. Nc3 {[%clk 0:02:40]}  h5 {[%clk 0:02:29]} 10. Ne2 {[%clk 0:02:36]}  Qe7 {[%clk 0:02:19]} 11. g3 {[%clk 0:02:30]}  Nbd7 {[%clk 0:02:07]} 12. Ned4 {[%clk 0:02:22]}  Nc5 {[%clk 0:02:06]} 13. Be2 {[%clk 0:02:21]}  Nce4 {[%clk 0:01:53]} 14. Nxf5 {[%clk 0:02:14]}  exf5 {[%clk 0:01:54]} 15. Rg1 {[%clk 0:02:10]}  h4 {[%clk 0:01:35]} 16. gxh4 {[%clk 0:02:06]}  Nh5 {[%clk 0:01:31]} 17. Bxg7 {[%clk 0:01:59]}  Nxg7 {[%clk 0:01:32]} 18. d3 {[%clk 0:01:56]}  Nd6 {[%clk 0:01:29]} 19. Qd2 {[%clk 0:01:54]}  O-O-O {[%clk 0:01:27]} 20. a4 {[%clk 0:01:22]}  Rde8 {[%clk 0:01:24]} 21. Kf2 {[%clk 0:01:17]}  Ne6 {[%clk 0:01:12]} 22. Rae1 {[%clk 0:01:14]}  Qc7 {[%clk 0:01:11]} 23. Bf1 {[%clk 0:01:06]}  Qb6 {[%clk 0:01:11]} 24. Kg2 {[%clk 0:01:00]}  Re7 {[%clk 0:01:03]} 25. Kh1 {[%clk 0:00:44]}  Nf8 {[%clk 0:00:43]} 26. Rg2 {[%clk 0:00:39]}  Nd7 {[%clk 0:00:43]} 27. Rge2 {[%clk 0:00:32]}  Rh6 {[%clk 0:00:39]} 28. Qc3 {[%clk 0:00:28]}  f6 {[%clk 0:00:35]} 29. Bg2 {[%clk 0:00:26]}  Kb8 {[%clk 0:00:35]} 30. Kh2 {[%clk 0:00:23]}  Rh8 {[%clk 0:00:33]} 31. Qd4 {[%clk 0:00:19]}  Qc7 {[%clk 0:00:28]} 32. c4 {[%clk 0:00:19]}  dxc4 {[%clk 0:00:23]} 33. bxc4 {[%clk 0:00:19]}  b6 {[%clk 0:00:21]} 34. Nd2 {[%clk 0:00:18]}  Nc5 {[%clk 0:00:19]} 35. Rb1 {[%clk 0:00:17]}  Ka7 {[%clk 0:00:19]} 36. Nb3 {[%clk 0:00:15]}  Ndb7 {[%clk 0:00:13]} 37. Nxc5 {[%clk 0:00:13]}  Nxc5 {[%clk 0:00:14]} 38. Reb2 {[%clk 0:00:11]}  Rd8 {[%clk 0:00:08]} 39. Rxb6 {[%clk 0:00:11]}  Rxd4 {[%clk 0:00:07]} 40. Rxc6 {[%clk 0:00:06]}  Qxc6 {[%clk 0:00:06]} 41. Bxc6 {[%clk 0:00:05]}  Rxe3 {[%clk 0:00:06]} 42. Rb5 {[%clk 0:00:05]}  Nxd3 {[%clk 0:00:05]} 0-1


[Site "https://www.chess.com"]